[Event "Klatov Bazar Besiny Cup 2018"]
[Site "Klatovy"]
[Date "2018.07.08"]
[Round "9"]
[White "Vavrinkova, Eliska"]
[Black "Finek, Vaclav"]
[Result "1-0"]
[ECO "D02"]
[WhiteElo "1746"]
[BlackElo "1763"]
[Annotator "NA"]
[PlyCount "77"]
[EventDate "2018.07.01"]
[EventType "swiss"]
[EventCountry "CZE"]
[SourceTitle "playchess.com"]
[Source "ChessBase"]
[SourceQuality "1"]
[TimeControl "40/7200:0"]

1. d4 {[%emt 0:00:00]} d5 {[%emt 0:00:00]} 2. Nf3 {[%emt 0:00:00]} Nf6 {[%emt 0:00:00]} 3. c4 {[%emt 0:00:00]} c6 {[%emt 0:00:00]} 4. Qc2 {[%emt 0:04:40]} g6 {[%emt 0:00:54]} 5. cxd5 {[%emt 0:03:10]} cxd5 {[%emt 0:00:00]} 6. Nc3 {[%emt 0:01:05]} Nc6 {[%emt 0:00:35]} 7. Bf4 {[%emt 0:04:30]} a6 {[%emt 0:01:32]} 8. e3 {[%emt 0:02:17]} Bf5 {[%emt 0:00:47]} 9. Qd1 {[%emt 0:04:32]} Bg7 {[%emt 0:06:33]} 10. a3 {[%emt 0:00:08]} O-O {[%emt 0:00:48]} 11. Bd3 {[%emt 0:00:13]} Bxd3 {[%emt 0:01:11]} 12. Qxd3 {[%emt 0:01:22]} Qa5 {[%emt 0:03:53]} 13. O-O {[%emt 0:02:36]} b5 {[%emt 0:01:19]} 14. b4 {[%emt 0:02:05]} Qb6 {[%emt 0:01:17]} 15. Rfc1 {[%emt 0:02:35]} Rfd8 {[%emt 0:04:34]} 16. h3 {[%emt 0:01:47]} Rac8 {[%emt 0:02:43]} 17. Rc2 {[%emt 0:01:38]} Na7 {[%emt 0:06:08]} 18. Rac1 {[%emt 0:02:29]} a5 {[%emt 0:01:10]} 19. Na2 Rxc2 {[%emt 0:07:02]} 20. Rxc2 {[%emt 0:02:51]} Rd7 {[%emt 0:01:09]} 21. Ne5 {[%emt 0:02:48]} Rb7 {[%emt 0:01:04]} 22. bxa5 {[%emt 0:03:06]} Qxa5 {[%emt 0:01:35]} 23. Nb4 {[%emt 0:00:00]} Nh5 {[%emt 0:00:58]} 24. Nxd5 {[%emt 0:12:36]} Nxf4 {[%emt 0:03:36]} 25. Nxf4 {[%emt 0:01:16]} b4 {[%emt 0:04:08]} 26. axb4 {[%emt 0:05:24]} Qxb4 {[%emt 0:02:42]} 27. Rc1 {[%emt 0:05:37]} Qb5 {[%emt 0:02:14]} 28. Qxb5 {[%emt 0:02:47]} Rxb5 {[%emt 0:10:05]} 29. Rc7 {[%emt 0:00:00]} Ra5 {[%emt 0:02:17]} 30. Rxe7 {[%emt 0:00:00]} Bxe5 {[%emt 0:00:00]} 31. Rxe5 {[%emt 0:00:00]} Ra2 {[%emt 0:01:31]} 32. Rc5 {[%emt 0:01:31]} Kg7 {[%emt 0:00:44]} 33. d5 {[%emt 0:01:13]} Rd2 {[%emt 0:00:25]} 34. Kf1 {[%emt 0:00:17]} Kf6 {[%emt 0:01:40]} 35. Ke1 {[%emt 0:00:10]} Rb2 {[%emt 0:00:00]} 36. d6 {[%emt 0:03:57]} Rb8 {[%emt 0:00:00]} 37. e4 {[%emt 0:02:51]} Re8 {[%emt 0:00:00]} 38. Nd5+ {[%emt 0:00:31]} Kg7 {[%emt 0:00:00]} 39. d7 {[%emt 0:00:20]} 1-0